bitfinex/quotes_ETHUSD_20251122
["timestamp","ask_amount","ask_price","bid_price","bid_amount"]
[1763808650427,0.867604,2712.7,2712.4,0.6524]
[1763808650710,0.1894,2712.8,2712.4,0.6524]
[1763808650912,0.6524,2712.8,2712.6,0.4815]
[1763808651214,0.6524,2712.8,2712.4,0.6472]
[1763808651412,0.6524,2712.8,2712.4,0.1709]
[1763808651612,0.002,2713.1,2712.4,0.6472]
[1763808651815,1.36909264,2713.0,2712.2,0.1709]
[1763808652021,0.63772605,2712.9,2712.2,0.1709]
[1763808652316,1.28922605,2712.9,2712.2,0.1709]
[1763808652816,0.4621,2712.8,2712.2,0.1709]
[1763808652981,0.03681764,2712.7,2712.2,0.1709]
[1763808653379,0.49891764,2712.7,2712.2,0.1709]
[1763808654013,0.49891764,2712.7,2711.8,0.6013]
[1763808654014,0.4621,2712.7,2711.8,0.6013]
[1763808654389,0.405504,2712.6,2711.9,0.4763]
[1763808654599,0.79030841,2712.9,2711.9,0.4763]
[1763808654913,0.405504,2712.7,2711.9,0.4763]
[1763808655082,0.33632666,2712.6,2711.9,0.4763]
[1763808655513,0.405504,2712.5,2711.9,0.4763]
[1763808655912,0.38480441,2712.9,2711.9,0.4763]
[1763808655913,0.4763,2712.6,2712.0,0.1709]
[1763808656214,0.03681764,2712.5,2712.0,0.1709]
[1763808656720,0.4621,2712.4,2712.0,0.1709]
[1763808656901,0.881804,2712.7,2712.0,0.6472]
[1763808657108,0.881804,2712.7,2712.3,0.4815]
[1763808657488,0.405504,2712.8,2712.3,0.9578]
[1763808657818,1.052704,2712.8,2712.3,0.9578]
[1763808658129,0.03881764,2713.1,2712.7,0.4815]
[1763808658285,0.03881764,2713.1,2712.8,0.4815]
[1763808658286,0.37785276,2713.1,2712.8,0.4815]
[1763808658484,0.002,2712.9,2712.8,0.4815]
[1763808659832,0.002,2712.9,2712.8,0.9578]
[1763808661752,0.58046053,2712.9,2712.8,0.9578]
[1763808662047,0.002,2712.9,2712.8,0.9578]
[1763808665616,0.002,2713.1,2712.8,0.9578]
[1763808665820,0.002,2713.1,2713.0,0.4815]
[1763808666018,0.002,2713.2,2713.0,0.4815]
[1763808666217,0.002,2713.2,2713.1,1.1028]
[1763808666427,0.002,2713.2,2712.9,0.1709]
[1763808666630,0.3175,2713.0,2712.4,0.4545]
[1763808666835,0.14977406,2713.2,2712.5,0.125]
[1763808667054,0.14977406,2713.2,2712.9,0.4774]
[1763808667359,0.14977406,2713.2,2712.5,0.125]
[1763808667360,0.002,2713.2,2713.1,0.6483]
[1763808667827,0.002,2713.2,2713.1,0.7733]
[1763808668160,0.002,2713.2,2713.1,1.2278]
[1763808669428,0.002,2713.2,2713.1,0.7733]
[1763808669628,0.002,2713.2,2713.1,0.125]
[1763808669843,0.9662,2713.2,2712.3,0.4545]
[1763808670137,0.9662,2713.2,2712.4,0.125]
[1763808670338,0.9662,2713.2,2712.4,0.5795]
[1763808670838,0.9662,2713.2,2712.5,0.4545]
[1763808671244,0.002,2713.2,2712.5,0.4545]
[1763808671528,0.002,2713.2,2713.1,0.6483]
[1763808671772,0.002,2713.2,2713.1,1.2278]
[1763808684689,0.002,2713.2,2713.1,0.4774]
[1763808684893,0.002,2713.2,2713.1,0.125]
[1763808688179,0.4857,2713.2,2713.1,0.125]
[1763808688396,0.9662,2713.2,2713.1,0.125]
[1763808688897,0.9662,2713.2,2712.9,0.001]
[1763808689068,0.9662,2713.2,2713.1,0.125]
[1763808689678,0.9662,2713.2,2712.9,0.001]
[1763808689878,0.3175,2713.0,2712.9,0.001]
[1763808690100,0.3175,2713.0,2712.9,0.126]
[1763808690300,0.002,2713.2,2712.9,0.126]
[1763808690802,0.4837,2713.0,2712.9,0.126]
[1763808691110,0.4825,2713.2,2712.9,0.126]
[1763808692714,0.002,2713.2,2712.9,0.126]
[1763808693017,0.58044417,2713.2,2713.1,0.4774]
[1763808693315,0.58044417,2713.2,2713.1,0.6483]
[1763808693479,0.58044417,2713.2,2713.1,1.1028]
[1763808693678,0.002,2713.2,2713.1,1.1028]
[1763808695281,0.002,2713.2,2713.1,1.1396582]
[1763808696914,0.002,2713.4,2713.1,1.1396582]
[1763808696915,0.002,2713.4,2713.1,5.23098284]
[1763808697159,0.58033627,2713.8,2713.1,5.23098284]
[1763808697160,0.002,2713.8,2713.4,0.4556]
[1763808697373,0.002,2713.8,2713.2,1.92779092]
[1763808697374,0.002,2713.8,2713.6,0.462]
[1763808697667,0.002,2713.8,2713.6,0.587]
[1763808697955,0.002,2713.8,2713.6,1.054]
[1763808698161,0.002,2713.8,2713.6,0.929]
[1763808698365,0.002,2713.8,2713.6,0.125]
[1763808699090,0.002,2713.8,2713.6,1.054]
[1763808699434,0.002,2713.8,2713.6,0.929]
[1763808699670,0.002,2713.8,2713.6,2.01901216]
[1763808699833,0.002,2713.8,2713.6,1.054]
[1763808700767,0.002,2714.0,2713.6,1.054]
[1763808700768,0.002,2714.0,2713.6,5.64613414]
[1763808700970,0.002,2714.0,2713.9,0.462]
[1763808701276,0.002,2714.0,2713.9,0.929]
[1763808702670,0.002,2714.0,2713.9,1.054]
[1763808702872,0.002,2714.0,2713.6,0.90699264]
[1763808703172,0.002,2714.0,2713.4,0.467]
[1763808703173,0.002,2714.0,2713.7,0.125]
[1763808703772,0.002,2714.0,2713.9,0.462]
[1763808704353,0.002,2714.0,2713.9,0.929]
[1763808704549,0.002,2714.0,2713.9,0.462]
[1763808705978,0.4809,2714.0,2713.7,0.125]
[1763808706308,0.002,2714.0,2713.9,0.462]
[1763808706464,0.002,2714.0,2713.7,0.125]
[1763808707258,0.4743,2714.0,2713.7,0.125]
[1763808707887,0.4789,2713.8,2713.2,0.467]
[1763808708086,0.4789,2713.8,2713.3,0.125]
[1763808708509,0.4789,2713.8,2713.3,0.592]
[1763808709516,0.4789,2713.8,2713.3,0.125]
[1763808709694,0.4723,2713.7,2713.3,0.125]
[1763808710990,0.76970726,2713.9,2713.1,0.1709]
[1763808711180,0.1914,2713.9,2713.2,0.125]
[1763808711507,0.6637,2713.9,2713.2,0.125]
[1763808712401,0.6637,2713.9,2713.2,0.16185684]
[1763808713404,0.1914,2713.9,2713.2,0.125]
[1763808713607,0.4723,2713.8,2713.3,0.125]
[1763808713994,0.4789,2713.4,2713.3,0.125]
[1763808715386,0.9512,2713.4,2713.3,0.125]
[1763808715590,0.9512,2713.4,2713.1,0.001]
[1763808715804,0.877804,2713.8,2713.2,0.125]
[1763808716008,0.4789,2713.3,2713.2,0.125]
[1763808718237,0.4723,2713.6,2713.2,0.125]
[1763808719334,0.6657,2713.9,2713.5,0.462]
[1763808719503,0.6657,2713.9,2713.2,0.125]
[1763808719705,0.1934,2713.9,2713.2,0.125]
[1763808719940,0.1934,2713.9,2713.3,0.467]
[1763808720613,0.002,2713.9,2713.8,0.462]
[1763808720937,0.002,2713.9,2713.8,0.125]
[1763808721134,0.9532,2713.9,2713.8,0.125]
[1763808721337,0.002,2713.9,2713.8,0.125]
[1763808721634,0.4809,2713.9,2713.8,0.125]
[1763808722021,0.9532,2713.9,2713.8,0.125]
[1763808722830,0.4809,2713.9,2713.8,0.125]
[1763808723538,0.002,2713.9,2713.8,0.587]
[1763808723922,0.002,2713.9,2713.8,0.125]
[1763808724123,0.9532,2713.9,2713.8,0.125]
[1763808724508,1.53148643,2713.9,2713.8,0.125]
[1763808725649,1.53148643,2713.9,2713.1,0.001]
[1763808725650,7.27590927,2713.9,2713.1,0.001]
[1763808725810,1.59729493,2713.8,2713.2,0.125]
[1763808726225,0.4598,2713.3,2713.2,0.125]
[1763808727414,0.9238,2713.3,2713.2,0.125]
[1763808728940,1.50216442,2713.3,2713.2,0.125]
[1763808732434,1.50216442,2713.3,2713.1,0.001]
[1763808732645,1.208704,2713.2,2713.1,0.001]
[1763808732811,0.4598,2713.2,2713.1,0.001]
[1763808733015,0.9238,2713.2,2713.1,0.001]
[1763808733448,1.17948984,2713.2,2713.1,0.001]
[1763808734744,1.58499384,2713.2,2713.1,0.001]
[1763808736117,1.73275316,2713.2,2713.1,0.001]
[1763808738745,2.27888701,2713.2,2713.1,0.001]
[1763808738919,2.31570465,2713.2,2713.1,0.001]
[1763808741130,2.27888701,2713.2,2713.1,0.001]
[1763808741330,1.73275316,2713.2,2713.1,0.001]
[1763808742265,2.31570465,2713.2,2713.1,0.001]
[1763808742726,9.40043039,2713.2,2713.1,0.001]
[1763808742929,10.30742303,2713.2,2713.1,0.001]
[1763808744867,10.30742303,2713.2,2712.8,0.001]
[1763808744868,0.405504,2712.9,2712.8,0.001]
[1763808745165,0.405504,2712.7,2712.3,0.125]
[1763808745367,8.88854002,2712.7,2712.3,0.125]
[1763808745570,9.35254002,2712.7,2712.3,0.125]
[1763808745735,9.50035175,2712.7,2712.3,0.125]
[1763808746779,7.1418561,2712.7,2712.3,0.125]
[1763808746966,8.03209133,2712.7,2712.3,0.125]
[1763808750379,8.57822518,2712.7,2712.5,0.001]
[1763808751079,25.22386118,2712.7,2712.5,0.001]
[1763808751283,23.84975018,2712.7,2712.5,0.001]
[1763808751592,23.84975018,2712.7,2712.3,0.001]
[1763808751593,0.405504,2712.5,2712.3,0.001]
[1763808751816,0.89572164,2712.4,2712.3,0.001]
[1763808752167,1.35972164,2712.4,2712.3,0.001]
[1763808752485,0.405504,2712.1,2712.0,0.001]
[1763808752662,6.41824437,2712.1,2712.0,0.001]
[1763808752857,8.15282796,2712.1,2712.0,0.001]
[1763808753809,7.72200055,2712.1,2712.0,0.001]
[1763808754300,16.59047455,2712.1,2712.0,0.001]
[1763808754514,12.57510582,2712.1,2712.0,0.001]
[1763808754720,11.35247482,2712.1,2712.0,0.001]
[1763808754917,8.06055982,2712.1,2712.0,0.001]
[1763808755083,7.72200055,2712.1,2712.0,0.001]
[1763808755283,9.75586955,2712.1,2712.0,0.001]
[1763808756811,10.33457197,2712.1,2712.0,0.001]
[1763808757213,24.58678697,2712.1,2712.0,0.001]
[1763808757414,24.00488497,2712.1,2712.0,0.001]
[1763808757602,24.55101882,2712.1,2712.0,0.001]
[1763808757804,21.7695228,2712.1,2712.0,0.001]
[1763808758312,15.3883878,2712.1,2712.0,0.001]
[1763808758714,14.84225395,2712.1,2712.0,0.001]
[1763808758925,14.50370897,2712.1,2712.0,0.001]
[1763808759105,8.30070297,2712.1,2712.0,0.001]
[1763808760205,13.78245297,2712.1,2712.0,0.001]
[1763808760409,11.18393397,2712.1,2712.0,0.001]
[1763808760607,8.30070297,2712.1,2712.0,0.001]
[1763808761009,7.83670297,2712.1,2712.0,0.001]
[1763808761226,7.14479677,2712.1,2712.0,0.001]
[1763808761433,6.39659277,2712.1,2712.0,0.4843]
[1763808761591,1.05484262,2712.1,2712.0,0.4843]
[1763808761920,1.05484262,2712.1,2712.0,0.001]
[1763808761921,1.94514662,2712.1,2712.0,0.001]
[1763808762092,1.46034662,2712.1,2712.0,0.4843]
[1763808762289,0.55335398,2712.1,2712.0,0.4843]
[1763808762508,1.50825398,2712.1,2712.0,0.001]
[1763808763122,6.27130171,2712.1,2712.0,0.001]
[1763808763304,6.30811935,2712.1,2712.0,0.001]
[1763808763510,6.93524952,2712.1,2712.0,0.001]
[1763808764723,7.51392641,2712.1,2712.0,0.001]
[1763808764927,7.47710877,2712.1,2712.0,0.001]
[1763808765916,0.72652687,2712.1,2712.0,0.4843]
[1763808766298,0.72652687,2712.1,2712.0,0.971]
[1763808766494,1.13203087,2712.1,2712.0,0.971]
[1763808766700,0.14784998,2712.1,2712.0,0.971]
[1763808766928,3.56196475,2712.1,2712.0,0.971]
[1763808767627,4.04676475,2712.1,2712.0,0.001]
[1763808767819,3.56196475,2712.1,2712.0,0.001]
[1763808768016,4.04676475,2712.1,2712.0,0.001]
[1763808768326,4.95424523,2712.1,2712.0,0.001]
[1763808768745,5.42434523,2712.1,2712.0,0.001]
[1763808769112,8.98630998,2712.1,2712.0,0.001]
[1763808769626,5.42434523,2712.1,2712.0,0.001]
[1763808770026,4.95424523,2712.1,2712.0,0.001]
[1763808770548,4.46944523,2712.1,2712.0,0.001]
[1763808771044,3.96746875,2712.1,2712.0,0.4843]
[1763808771553,3.96746875,2712.1,2712.0,0.971]
[1763808772564,3.96746875,2712.1,2712.0,0.001]
[1763808774432,4.45226875,2712.1,2712.0,0.001]
[1763808774836,3.96746875,2712.1,2712.0,0.4843]
[1763808775241,3.56196475,2712.1,2712.0,0.4843]
[1763808775720,3.56196475,2712.1,2712.0,0.971]
[1763808777243,4.46895739,2712.1,2712.0,0.971]
[1763808778447,4.46895739,2712.1,2712.0,1.096]
[1763808778849,0.90699264,2712.1,2712.0,1.096]
[1763808780133,0.90699264,2712.1,2712.0,0.126]
[1763808780533,1.79729664,2712.1,2712.0,0.001]
[1763808780865,3.06569498,2712.1,2712.0,0.001]
[1763808781062,3.55368946,2712.1,2712.0,0.001]
[1763808781220,3.51687182,2712.1,2712.0,0.001]
[1763808781628,2.56197182,2712.1,2712.0,0.001]
[1763808781843,3.51687182,2712.1,2712.0,0.001]
[1763808783526,2.22180492,2712.1,2712.0,0.001]
[1763808783826,1.46032422,2712.1,2712.0,0.001]
[1763808784668,0.58071307,2712.3,2712.0,0.971]
[1763808784842,0.58071307,2712.3,2712.2,0.4833]
[1763808785023,0.002,2712.3,2712.2,0.4833]
[1763808785458,0.99371764,2712.3,2712.0,0.001]
[1763808785664,0.405504,2712.1,2712.0,0.126]
[1763808785846,0.405504,2712.1,2712.0,0.001]
[1763808786360,0.864704,2712.1,2712.0,0.001]
[1763808786563,2.06635896,2712.1,2712.0,0.001]
[1763808786873,2.61249281,2712.1,2712.0,0.001]
[1763808787228,3.85959543,2712.1,2712.0,0.001]
[1763808788638,2.81524394,2712.1,2712.0,0.001]
[1763808788840,3.27664394,2712.1,2712.0,0.001]
[1763808789869,1.80044021,2712.1,2712.0,0.4566]
[1763808790076,1.46033023,2712.1,2712.0,0.4566]
[1763808790564,0.14783359,2712.1,2712.0,0.9154]
[1763808791246,0.14783359,2712.1,2712.0,0.4566]
[1763808791766,0.14783359,2712.1,2712.0,0.001]
[1763808791953,1.01253759,2712.1,2712.0,0.001]
[1763808792158,0.55333759,2712.1,2712.0,0.4566]
[1763808792678,0.14783359,2712.1,2712.0,0.4566]
[1763808793681,0.60703359,2712.1,2712.0,0.001]
[1763808794176,0.14783359,2712.1,2712.0,0.4566]
[1763808794785,1.06843359,2712.1,2712.0,0.001]
[1763808794962,0.14783359,2712.1,2712.0,0.4566]
[1763808795874,0.60703359,2712.1,2712.0,0.001]
[1763808796681,1.06843359,2712.1,2712.0,0.001]
[1763808796985,0.14783359,2712.1,2712.0,0.4566]
[1763808798889,4.87185374,2712.1,2712.0,0.4566]
[1763808799485,5.45051979,2712.1,2712.0,0.4566]
[1763808800711,1.63349228,2712.1,2712.0,0.9154]
[1763808800857,0.90899264,2712.3,2712.0,0.9154]
[1763808801058,0.90899264,2712.3,2712.2,0.6265]
[1763808801565,0.002,2712.3,2712.2,0.6265]
[1763808801756,0.002,2712.3,2712.0,0.001]
[1763808801757,1.0877,2712.3,2712.0,0.001]
[1763808801962,3.81702751,2712.1,2712.0,0.001]
[1763808802188,3.81702751,2712.1,2712.0,0.126]
[1763808802491,3.81702751,2712.1,2712.0,0.5816]
[1763808802991,4.27622751,2712.1,2712.0,0.126]
[1763808803471,3.81702751,2712.1,2712.0,0.126]
[1763808804394,3.81702751,2712.1,2712.0,0.5816]
[1763808806290,4.39862751,2712.1,2712.0,0.5816]
[1763808806490,5.76482015,2712.1,2712.0,0.126]
[1763808807585,5.30562015,2712.1,2712.0,0.126]
[1763808808786,5.76482015,2712.1,2712.0,0.126]
[1763808808984,6.38764217,2712.1,2712.0,0.126]
[1763808809191,7.25454617,2712.1,2712.0,0.001]
[1763808809564,7.59483816,2712.1,2712.0,0.001]
[1763808812767,6.67423816,2712.1,2712.0,0.001]
[1763808812975,1.89409664,2712.1,2712.0,0.4566]
[1763808814086,1.48859264,2712.1,2712.0,0.4566]
[1763808814293,0.5816,2712.1,2712.0,0.4566]
[1763808814596,1.48859264,2712.1,2712.0,0.4566]
[1763808814795,1.48859264,2712.1,2712.0,0.9154]
[1763808816412,0.5816,2712.1,2712.0,0.9154]
[1763808818000,1.16023694,2712.1,2712.0,0.9154]
[1763808818828,1.16023694,2712.1,2712.0,0.4566]
[1763808818985,3.96817766,2712.1,2712.0,0.001]
[1763808819922,3.93136002,2712.1,2712.0,0.001]
[1763808820621,4.27173443,2712.1,2712.0,0.001]
[1763808823912,2.97066002,2712.1,2712.0,0.001]
[1763808824394,3.46996002,2712.1,2712.0,0.001]
[1763808826035,4.27162967,2712.1,2712.0,0.001]
[1763808827098,3.81022967,2712.1,2712.0,0.001]
[1763808827811,4.27162967,2712.1,2712.0,0.001]
[1763808828012,3.69299273,2712.1,2712.0,0.001]
[1763808829551,3.35272308,2712.1,2712.0,0.001]
[1763808831433,3.69303731,2712.1,2712.0,0.001]
[1763808831748,4.27173015,2712.1,2712.0,0.001]
[1763808832663,2.47278948,2712.1,2712.0,0.4808]
[1763808833255,1.89409664,2712.1,2712.0,0.4308]
[1763808833753,0.90699264,2712.1,2712.0,0.4308]
[1763808833959,0.90699264,2712.1,2712.0,0.8945]
[1763808834758,0.90699264,2712.1,2712.0,0.4308]
[1763808834930,0.90699264,2712.1,2712.0,0.8945]
[1763808835351,0.407504,2712.3,2712.0,0.8945]
[1763808835552,0.407504,2712.3,2711.8,0.1]
[1763808835721,1.302004,2712.3,2712.0,0.001]
[1763808836125,1.302004,2712.3,2712.2,0.4637]
[1763808836522,1.302004,2712.3,2712.2,0.4137]
[1763808837231,1.801304,2712.3,2712.0,0.001]
[1763808837848,0.90699264,2712.1,2712.0,0.001]
[1763808838052,1.30489264,2712.1,2712.0,0.001]
[1763808840353,2.86401082,2712.1,2712.0,0.001]
[1763808840523,3.35218183,2712.1,2712.0,0.001]
[1763808840721,3.01183949,2712.1,2712.0,0.001]
[1763808841151,8.47947101,2712.1,2712.0,0.001]
[1763808841352,6.79927901,2712.1,2712.0,0.001]
[1763808841554,7.43535,2711.9,2711.8,0.1]
[1763808841758,11.97639963,2711.9,2711.8,0.1]
[1763808842054,12.43779963,2711.9,2711.8,0.1]
[1763808842235,7.73426963,2711.9,2711.8,0.1]
[1763808842436,12.91895363,2711.9,2711.8,0.1]
[1763808843445,12.89106163,2711.9,2711.8,0.1]
[1763808843649,11.19733563,2711.9,2711.8,0.1]
[1763808844371,11.34519162,2711.9,2711.8,0.1]
[1763808844733,10.64157662,2711.9,2711.8,0.1]
[1763808844933,7.88212562,2711.9,2711.8,0.1]
[1763808845160,9.90414762,2711.9,2711.8,0.1]
[1763808845866,7.88212562,2711.9,2711.8,0.1]
[1763808846064,8.46090595,2711.9,2711.8,0.1]
[1763808846269,7.88212562,2711.9,2711.8,0.1]
[1763808847843,5.9948631,2711.9,2711.8,0.5137]
[1763808848045,4.72402015,2711.9,2711.8,0.1]
[1763808848557,3.81702751,2711.9,2711.8,0.1]
[1763808848757,3.96869536,2711.9,2711.8,0.1]
[1763808849165,4.875688,2711.9,2711.8,0.1]
[1763808849367,5.92462746,2711.9,2711.8,0.1]
[1763808849553,7.22335505,2711.9,2711.8,0.1]
[1763808849754,10.78654641,2711.9,2711.8,0.1]
[1763808850750,18.02654077,2711.9,2711.8,0.1]
[1763808850949,18.17439075,2711.9,2711.8,0.1]
[1763808851455,16.93812075,2711.9,2711.8,0.1]
[1763808851659,15.91543675,2711.9,2711.8,0.1]
[1763808852194,15.91543675,2711.9,2711.8,0.101]
[1763808852779,20.40115275,2711.9,2711.8,0.101]
[1763808853084,20.08415275,2711.9,2711.8,0.101]
[1763808853853,19.89769675,2711.9,2711.8,0.101]
[1763808854066,18.16292675,2711.9,2711.8,0.101]
[1763808854806,24.00755975,2711.9,2711.8,0.101]
[1763808855169,24.00755975,2711.9,2711.7,0.001]
[1763808855488,16.97620697,2711.8,2711.7,0.001]
[1763808856183,14.98651997,2711.8,2711.7,0.001]
[1763808856887,15.00866697,2711.8,2711.7,0.001]
[1763808857889,4.93734097,2711.8,2711.7,0.001]
[1763808858086,1.31249664,2711.7,2711.5,0.001]
[1763808858290,1.31249664,2711.5,2710.7,0.5387]
[1763808858453,8.83157936,2711.1,2710.7,0.5387]
[1763808858668,8.83157936,2711.1,2710.7,0.125]
[1763808858898,9.32357936,2711.1,2710.7,0.125]
[1763808859201,10.2559373,2711.1,2710.7,0.125]
[1763808859828,10.2559373,2711.1,2710.4,0.45059]
[1763808859829,3.57507664,2711.0,2710.4,0.03689]
[1763808859969,0.405504,2710.4,2710.0,0.1]
[1763808860269,1.38294794,2711.1,2710.1,1.83687575]
[1763808860593,3.56319136,2710.6,2710.2,0.4306]
[1763808860812,0.90699264,2710.7,2710.2,0.4306]
[1763808861304,3.56319136,2710.8,2710.6,0.4515]
[1763808861601,0.856094,2711.1,2710.1,0.1058]
[1763808861602,3.96869536,2711.1,2710.7,0.4515]
[1763808861799,3.56319136,2711.0,2710.1,0.1058]
[1763808861963,3.56319136,2711.0,2710.9,0.4515]
[1763808863017,3.56319136,2711.0,2710.9,0.921]
[1763808863998,0.405504,2711.1,2710.9,0.921]
[1763808863999,0.90699264,2711.1,2710.9,0.921]
[1763808864195,0.90699264,2711.1,2711.0,0.921]
[1763808865216,0.90699264,2711.1,2711.0,0.4515]
[1763808865620,0.405504,2711.0,2710.8,0.125]
[1763808865918,4.470184,2710.9,2710.8,0.125]
[1763808866417,4.470184,2710.9,2710.8,0.5765]
[1763808866625,0.90699264,2710.9,2710.8,1.046]
[1763808867226,4.470184,2710.9,2710.8,1.046]
[1763808867734,4.940384,2710.9,2710.8,0.125]
[1763808867904,4.940384,2710.9,2710.4,0.125]
[1763808867905,1.31249664,2710.8,2710.4,0.125]
[1763808868241,0.492,2711.8,2710.4,0.125]
[1763808868391,0.492,2711.8,2710.8,0.4515]
[1763808868392,3.56319136,2711.0,2710.8,0.4515]
[1763808868591,3.56319136,2711.0,2710.9,0.4515]
[1763808869326,3.96869536,2711.0,2710.9,0.4515]
[1763808869626,3.56319136,2711.1,2710.9,0.921]
[1763808869828,4.470184,2711.1,2711.0,0.4515]
[1763808871725,0.002,2711.3,2711.0,0.921]
[1763808871921,0.002,2711.3,2711.2,0.5724]
[1763808872127,0.002,2711.3,2711.2,1.0419]
[1763808873258,0.58080635,2711.3,2711.2,1.0419]
[1763808873431,0.002,2711.3,2711.2,1.0419]
[1763808874024,3.56519136,2711.3,2711.2,0.5724]
[1763808874226,3.56519136,2711.3,2711.2,0.5765]
[1763808874657,0.002,2711.3,2711.2,1.046]
[1763808875928,0.002,2711.3,2711.2,0.5765]
[1763808876128,0.002,2711.3,2711.2,1.0305]
[1763808878281,0.002,2711.3,2711.2,1.50195914]
[1763808879574,0.002,2711.3,2711.2,5.0651505]
[1763808880242,0.002,2711.3,2711.2,1.04795914]
[1763808880445,0.4958,2711.3,2711.0,0.1209]
[1763808880639,0.4958,2711.3,2711.1,0.125]
[1763808881046,0.002,2711.3,2711.1,0.125]
[1763808882055,0.002,2711.3,2711.2,0.4695]
[1763808882472,0.002,2711.3,2711.2,0.939]
[1763808882779,0.002,2711.3,2711.2,5.01388453]
[1763808882979,0.002,2711.3,2711.2,4.9770005]
[1763808884856,0.002,2711.3,2711.2,1.41380914]
[1763808885047,0.002,2711.3,2711.2,0.939]
[1763808890468,0.002,2711.3,2711.2,5.70135531]
[1763808892523,0.002,2711.3,2711.2,5.73823934]
[1763808892986,0.002,2711.3,2711.2,5.70135531]
[1763808894278,0.002,2711.3,2711.2,5.73823934]
[1763808894674,0.002,2711.3,2711.2,6.33665327]
[1763808895050,0.002,2711.3,2711.2,6.29976924]
[1763808895364,0.002,2711.3,2711.2,1.53741393]
[1763808897602,0.002,2711.3,2711.2,1.57429796]
[1763808898100,0.002,2711.6,2711.5,4.76235531]
[1763808898298,0.002,2711.6,2711.5,5.83309084]
[1763808898469,0.002,2711.6,2711.5,6.33947079]
[1763808900186,0.002,2711.6,2711.5,10.02746636]
[1763808900415,0.002,2711.6,2711.5,9.99058641]
[1763808900906,0.002,2711.9,2711.5,6.30259084]
[1763808901107,0.002,2711.9,2711.8,0.4695]
[1763808901308,0.002,2711.9,2711.8,0.939]
[1763808901898,0.002,2711.9,2711.8,0.4695]
[1763808902090,0.002,2711.9,2711.8,0.5945]
[1763808902290,0.002,2711.9,2711.2,0.59841393]
[1763808902291,0.4958,2711.9,2711.3,0.4695]
[1763808902586,0.4958,2711.9,2711.4,0.32249066]
[1763808902788,0.002,2711.9,2711.8,0.4695]
[1763808903019,0.002,2711.9,2711.8,0.5945]
[1763808903318,0.002,2711.9,2711.8,0.125]
[1763808904312,0.002,2711.9,2711.8,0.5945]
[1763808905302,0.6789,2711.9,2711.4,0.19749066]
[1763808905498,1.1677,2711.9,2711.5,0.125]
[1763808905698,0.6789,2711.9,2711.5,0.125]
[1763808905907,0.6789,2711.9,2711.8,0.4695]
[1763808905908,0.002,2711.9,2711.8,0.4695]
[1763808906901,0.002,2711.9,2711.5,3.68608876]
[1763808906902,0.4683,2711.9,2711.5,3.68608876]
[1763808907229,1.1603,2711.9,2711.5,3.68608876]
[1763808907548,0.4683,2711.9,2711.5,3.68608876]
[1763808907724,0.002,2711.9,2711.8,0.4695]
[1763808907927,0.002,2711.9,2711.8,0.50637587]
[1763808908127,0.002,2711.9,2711.8,4.53696463]
[1763808908334,0.002,2711.9,2711.8,5.34676997]
[1763808908698,0.002,2711.9,2711.8,9.03435755]
[1763808909001,0.002,2711.9,2711.8,10.15615256]
[1763808910306,0.002,2712.2,2711.8,10.15615256]
[1763808910307,0.002,2712.2,2711.9,1.78199664]
[1763808910520,0.002,2712.2,2712.1,5.26115964]
[1763808910897,0.002,2712.2,2712.1,6.95388398]
[1763808911635,0.002,2712.5,2712.2,1.78199664]
[1763808911840,0.002,2712.5,2712.4,0.4695]
[1763808912032,0.002,2712.5,2712.4,0.5945]
[1763808912331,0.002,2712.5,2712.4,1.30533657]
[1763808912908,0.002,2712.5,2712.4,4.99210843]
[1763808913237,0.002,2712.5,2712.4,1.30533657]
[1763808913750,0.002,2712.5,2712.4,4.99210843]
[1763808913910,1.07909784,2713.8,2712.5,1.31249664]
[1763808914113,1.07909784,2713.8,2712.5,8.79025283]
[1763808914114,0.58059784,2713.8,2712.5,8.79025283]
[1763808914311,0.58059784,2713.8,2712.8,0.875004]
[1763808914536,0.58059784,2713.8,2712.8,1.03686628]
[1763808914833,0.58059784,2713.8,2712.8,1.50636628]
[1763808915737,0.4985,2713.7,2712.8,1.064]
[1763808915944,0.4985,2713.7,2712.8,1.63343502]
[1763808916638,0.4985,2713.7,2712.8,1.6702973]
[1763808917631,0.4985,2713.5,2712.8,1.63343502]
[1763808917829,0.4985,2713.5,2712.8,1.064]
[1763808918241,0.58059784,2713.8,2712.8,1.064]
[1763808918847,0.4985,2713.5,2712.8,1.064]
[1763808919253,0.4985,2713.3,2712.8,0.4695]
[1763808919456,0.3736,2713.3,2712.8,0.125]
[1763808919755,0.58059784,2713.8,2712.8,0.125]
[1763808919919,0.002,2713.8,2712.8,0.125]
[1763808920246,0.57838641,2713.6,2712.9,0.03686092]
[1763808920454,0.57838641,2713.6,2712.8,0.6176]
[1763808920635,0.57838641,2713.6,2712.9,0.03686092]
[1763808920955,0.57838641,2713.6,2712.9,0.52946092]
[1763808921121,0.57838641,2713.6,2713.5,0.4858]
[1763808921317,0.57838641,2713.6,2713.5,0.6108]
[1763808922829,0.57838641,2713.6,2713.5,0.4858]
[1763808923027,0.57838641,2713.6,2713.5,0.6108]
[1763808923240,0.57838641,2713.6,2713.4,0.1249]
[1763808923447,1.04468641,2713.6,2713.5,0.125]